bitfinex/quotes_BTCUSD_20250102
["timestamp","ask_amount","ask_price","bid_price","bid_amount"]
[1735815538323,8.54e-05,96837.0,96836.0,1.52517764]
[1735815541829,8.54e-05,96837.0,96836.0,1.71061606]
[1735815542612,8.54e-05,96837.0,96836.0,1.66925406]
[1735815545399,8.54e-05,96837.0,96836.0,1.48381564]
[1735815545697,0.01626406,96837.0,96836.0,1.48381564]
[1735815547061,8.54e-05,96837.0,96836.0,1.48381564]
[1735815550169,8.54e-05,96837.0,96836.0,1.71561367]
[1735815552532,8.54e-05,96837.0,96836.0,1.48381564]
[1735815552942,0.01626406,96837.0,96836.0,1.48381564]
[1735815559045,8.54e-05,96837.0,96836.0,1.48381564]
[1735815559700,8.54e-05,96837.0,96836.0,1.71561367]
[1735815562056,0.01626427,96837.0,96836.0,1.71561367]
[1735815565324,0.01626427,96837.0,96836.0,1.48381564]
[1735815570349,0.19236427,96837.0,96836.0,1.48381564]
[1735815570626,0.19236427,96837.0,96836.0,1.38002932]
[1735815570775,0.1761854,96837.0,96836.0,1.38002932]
[1735815571758,0.1761854,96837.0,96836.0,1.36202932]
[1735815571951,0.1761854,96837.0,96836.0,1.35902932]
[1735815572199,0.3827174,96837.0,96836.0,1.11250527]
[1735815572369,0.1761854,96837.0,96836.0,1.12050527]
[1735815572568,0.2222854,96837.0,96836.0,1.11250527]
[1735815572938,0.2222854,96837.0,96836.0,1.11650527]
[1735815573137,0.2222854,96837.0,96836.0,1.11850527]
[1735815573347,0.2222854,96837.0,96836.0,1.0255108]
[1735815573529,0.2222854,96837.0,96836.0,1.0305108]
[1735815573761,0.2222854,96837.0,96836.0,1.0325108]
[1735815574161,0.23846628,96837.0,96836.0,1.0325108]
[1735815574365,0.44499828,96837.0,96836.0,1.0325108]
[1735815575288,0.44499828,96837.0,96836.0,1.0305108]
[1735815576123,0.44499828,96837.0,96836.0,1.0235108]
[1735815576331,0.44499828,96837.0,96836.0,1.0165108]
[1735815576522,0.44499828,96837.0,96836.0,1.0195108]
[1735815577780,0.44499828,96837.0,96836.0,1.0165108]
[1735815578038,0.44499828,96837.0,96836.0,1.0185108]
[1735815578465,0.4288174,96837.0,96836.0,1.0185108]
[1735815580784,0.4288174,96837.0,96836.0,1.0165108]
[1735815581126,0.4288174,96837.0,96836.0,1.0185108]
[1735815581704,0.4288174,96837.0,96836.0,1.0195108]
[1735815581901,0.44499912,96837.0,96836.0,1.0165108]
[1735815582326,0.44499912,96837.0,96836.0,1.0175108]
[1735815582920,0.44499912,96837.0,96836.0,0.5175108]
[1735815584017,0.44499912,96837.0,96836.0,0.5165108]
[1735815584018,0.98479005,96837.0,96836.0,0.5165108]
[1735815584233,1.00779005,96837.0,96836.0,0.1070458]
[1735815584428,0.723445,96831.0,96830.0,0.0001708]
[1735815584545,0.86373132,96831.0,96830.0,0.0001708]
[1735815584744,0.96771764,96831.0,96830.0,0.0001708]
[1735815584955,0.97901389,96831.0,96830.0,0.0001708]
[1735815585376,0.523445,96831.0,96830.0,0.0001708]
[1735815585577,0.101,96831.0,96830.0,0.0001708]
[1735815585797,0.004,96831.0,96830.0,0.0001708]
[1735815586007,0.004,96831.0,96830.0,0.0823708]
[1735815586210,0.001,96831.0,96830.0,0.18635712]
[1735815586610,0.005,96831.0,96830.0,0.18635712]
[1735815587404,0.008,96831.0,96830.0,0.18735712]
[1735815587604,0.007,96831.0,96830.0,0.18735712]
[1735815587822,0.003,96831.0,96830.0,0.18735712]
[1735815588035,0.003,96831.0,96830.0,0.19235712]
[1735815588280,8.54e-05,96837.0,96836.0,0.206534]
[1735815588487,8.54e-05,96837.0,96836.0,0.31052032]
[1735815590721,8.54e-05,96837.0,96836.0,0.11298632]
[1735815591139,8.54e-05,96837.0,96836.0,0.12498632]
[1735815591683,8.54e-05,96837.0,96836.0,0.12198632]
[1735815591885,8.54e-05,96837.0,96836.0,0.12498632]
[1735815592501,8.54e-05,96837.0,96836.0,0.10398632]
[1735815592945,8.54e-05,96837.0,96836.0,0.10798632]
[1735815593140,0.01626375,96837.0,96836.0,0.10798632]
[1735815593710,0.01626375,96837.0,96836.0,0.11698632]
[1735815594751,0.01626375,96837.0,96836.0,0.34918632]
[1735815597139,8.54e-05,96837.0,96836.0,0.34918632]
[1735815598399,8.54e-05,96837.0,96836.0,0.36968162]
[1735815600222,8.54e-05,96837.0,96836.0,0.88601162]
[1735815601348,0.01626363,96837.0,96836.0,0.88601162]
[1735815601744,8.54e-05,96837.0,96836.0,0.88601162]
[1735815602936,8.54e-05,96837.0,96836.0,0.75381162]
[1735815603459,8.54e-05,96837.0,96836.0,0.98671162]
[1735815606964,8.54e-05,96837.0,96836.0,0.98688242]
[1735815607408,8.54e-05,96837.0,96836.0,1.48688242]
[1735815607813,8.54e-05,96837.0,96836.0,1.53298242]
[1735815609025,8.54e-05,96837.0,96836.0,1.54313631]
[1735815611978,8.54e-05,96837.0,96836.0,1.53298242]
[1735815613436,8.54e-05,96837.0,96836.0,1.43298242]
[1735815634845,8.54e-05,96837.0,96836.0,1.77600827]
[1735815638324,8.54e-05,96837.0,96836.0,1.80829774]
[1735815640670,8.54e-05,96837.0,96836.0,2.04061154]
[1735815642231,8.54e-05,96837.0,96836.0,1.80829774]
[1735815642683,0.00022623,96849.0,96839.0,0.07271393]
[1735815642857,0.00037401,96849.0,96848.0,0.206509]
[1735815643065,0.00037401,96849.0,96848.0,0.82676532]
[1735815644497,0.00037401,96849.0,96848.0,0.83176532]
[1735815645037,0.00037401,96849.0,96848.0,1.33176532]
[1735815646007,0.00037401,96849.0,96848.0,1.33276532]
[1735815649157,0.00037401,96849.0,96848.0,1.12625632]
[1735815650159,0.10037401,96849.0,96848.0,1.02227]
[1735815650860,0.10037401,96849.0,96848.0,1.01627]
[1735815651066,0.10037401,96849.0,96848.0,1.02127]
[1735815651429,0.10037401,96849.0,96848.0,1.02227]
[1735815651852,0.10037401,96849.0,96848.0,1.02127]
[1735815652046,0.10037401,96849.0,96848.0,1.0224408]
[1735815652585,0.19341543,96849.0,96848.0,1.0224408]
[1735815652934,0.19341543,96849.0,96848.0,1.0174408]
[1735815653069,0.19341543,96849.0,96848.0,1.0214408]
[1735815653277,0.19341543,96849.0,96848.0,1.0174408]
[1735815653490,0.19341543,96849.0,96848.0,1.0164408]
[1735815653690,0.19341543,96849.0,96848.0,1.0194408]
[1735815654118,0.10037401,96849.0,96848.0,1.0194408]
[1735815654624,0.10037401,96849.0,96848.0,1.0164408]
[1735815654825,0.10137401,96849.0,96848.0,1.0164408]
[1735815655416,0.10037401,96849.0,96848.0,1.0164408]
[1735815656764,0.10137401,96849.0,96848.0,1.0164408]
[1735815657945,0.10137401,96849.0,96848.0,0.5164408]
[1735815659416,0.16827401,96849.0,96848.0,0.5164408]
[1735815660298,0.52226033,96849.0,96848.0,0.5164408]
[1735815660505,0.64526033,96849.0,96848.0,0.4131858]
[1735815660821,0.57736033,96849.0,96848.0,0.2499328]
[1735815661029,0.58036033,96849.0,96848.0,0.2086308]
[1735815661230,0.68634665,96849.0,96848.0,0.2086308]
[1735815661603,0.58036033,96849.0,96848.0,0.0001708]
[1735815661811,0.8776151,96849.0,96848.0,0.0001708]
[1735815662213,0.8746151,96849.0,96848.0,8e-07]
[1735815662540,0.89379637,96849.0,96848.0,8e-07]
[1735815662669,0.2,96837.0,96836.0,0.0001708]
[1735815662877,0.38,96837.0,96836.0,0.0001708]
[1735815663563,0.35,96837.0,96836.0,0.0001708]
[1735815663873,0.355,96837.0,96836.0,0.0001708]
[1735815664298,0.55698632,96837.0,96836.0,0.0001708]
[1735815664561,0.1,96831.0,96830.0,0.0001416]
[1735815664762,0.35398632,96831.0,96830.0,0.0001416]
[1735815665539,0.55797264,96831.0,96830.0,0.0001416]
[1735815665733,0.65797264,96831.0,96830.0,6e-07]
[1735815666160,0.68097264,96831.0,96830.0,6e-07]
[1735815666356,0.473,96826.0,96825.0,4e-07]
[1735815666664,0.79650226,96826.0,96825.0,4e-07]
[1735815667984,0.80850226,96826.0,96825.0,0.0010004]
[1735815669355,0.80850226,96826.0,96825.0,4e-07]
[1735815675642,0.80850226,96826.0,96825.0,2e-07]
[1735815681879,0.80961604,96826.0,96825.0,2e-07]
[1735815682220,0.81734792,96826.0,96825.0,2e-07]
[1735815684132,0.80850226,96826.0,96825.0,2e-07]
[1735815687707,0.80858766,96826.0,96825.0,2e-07]
[1735815694799,0.79562772,96826.0,96825.0,2e-07]
[1735815694996,0.79562772,96826.0,96825.0,0.0760002]
[1735815695658,0.79562772,96826.0,96825.0,2e-07]
[1735815699691,0.79162772,96826.0,96825.0,2e-07]
[1735815699852,0.79062772,96826.0,96825.0,2e-07]
[1735815700073,0.79962772,96826.0,96825.0,2e-07]
[1735815700296,0.79962772,96826.0,96804.0,0.0764]
[1735815700297,0.6566,96805.0,96804.0,0.0764]
[1735815700434,0.76058632,96805.0,96804.0,0.0764]
[1735815701455,0.76064732,96805.0,96804.0,0.0764]
[1735815701662,0.456661,96805.0,96804.0,0.0764]
[1735815701888,0.57284724,96805.0,96804.0,0.0764]
[1735815702555,0.57684724,96805.0,96804.0,0.0764]
[1735815703327,0.57884724,96805.0,96804.0,0.0764]
[1735815703729,0.32884724,96805.0,96804.0,0.1258]
[1735815704102,0.20659,96810.0,96805.0,0.0494]
[1735815704306,0.2992399,96813.0,96807.0,0.0494]
[1735815704307,0.0926549,96811.0,96807.0,0.0494]
[1735815704441,0.13898235,96813.0,96809.0,0.1255]
[1735815704635,0.13898235,96813.0,96811.0,0.1255]
[1735815704838,0.15516519,96813.0,96812.0,0.22948632]
[1735815705270,0.15516519,96813.0,96812.0,0.22448632]
[1735815705480,0.25516519,96813.0,96812.0,0.1255]
[1735815705685,0.11618284,96813.0,96812.0,0.1225]
[1735815706011,0.11718284,96813.0,96812.0,0.1225]
[1735815706240,0.11618284,96813.0,96812.0,0.1225]
[1735815706473,0.11618284,96813.0,96812.0,0.1235]
[1735815706682,0.01718284,96813.0,96812.0,0.1255]
[1735815706887,0.11718284,96813.0,96812.0,0.1255]
[1735815707114,0.01718284,96813.0,96812.0,0.1225]
[1735815707322,0.01718284,96813.0,96812.0,0.1245]
[1735815708176,0.01818284,96813.0,96812.0,0.1305]
[1735815708303,0.01618284,96813.0,96812.0,0.1245]
[1735815708505,0.01618284,96813.0,96812.0,0.1315]
[1735815708705,0.01718284,96813.0,96812.0,0.1345]
[1735815709830,0.01718284,96813.0,96812.0,0.134671]
[1735815710905,0.01726834,96813.0,96812.0,0.134671]
[1735815711619,0.01726834,96813.0,96812.0,0.131671]
[1735815711850,0.01726834,96813.0,96812.0,0.134671]
[1735815712260,0.01626834,96813.0,96812.0,0.22965732]
[1735815712461,0.001,96813.0,96812.0,0.11315732]
[1735815712674,0.001,96813.0,96812.0,0.11615732]
[1735815712821,8.54e-05,96826.0,96812.0,0.11615732]
[1735815713019,8.54e-05,96826.0,96814.0,0.1327]
[1735815713225,8.54e-05,96826.0,96817.0,0.0829]
[1735815713427,8.54e-05,96826.0,96819.0,0.0498]
[1735815713605,8.54e-05,96826.0,96821.0,0.0829]
[1735815713975,8.54e-05,96826.0,96823.0,0.0829]
[1735815714176,8.54e-05,96826.0,96824.0,0.10398632]
[1735815714410,8.54e-05,96826.0,96825.0,0.1327]
[1735815714609,8.54e-05,96826.0,96825.0,0.23668632]
[1735815715817,8.54e-05,96826.0,96825.0,0.23768632]
[1735815716325,0.0010854,96826.0,96825.0,0.24468632]
[1735815716738,0.0010854,96826.0,96825.0,0.24768632]
[1735815720496,0.1010854,96826.0,96825.0,0.1437]
[1735815723473,0.11726672,96826.0,96825.0,0.1437]
[1735815724861,0.1010854,96826.0,96825.0,0.1437]
[1735815726157,0.1000854,96826.0,96825.0,0.003]
[1735815726495,0.1000854,96826.0,96825.0,0.005]
[1735815726689,0.1000854,96826.0,96825.0,0.003]
[1735815726945,0.1000854,96826.0,96825.0,0.007]
[1735815727499,0.1000854,96826.0,96818.0,0.0789]
[1735815727700,0.1000854,96826.0,96825.0,0.002]
[1735815728683,0.3066414,96826.0,96825.0,0.002]
[1735815729066,0.3066414,96826.0,96818.0,0.0789]
[1735815729213,0.206571,96819.0,96818.0,0.0789]
[1735815729396,0.206571,96819.0,96818.0,0.0819]
[1735815729800,0.306571,96819.0,96818.0,0.0789]
[1735815731754,0.306571,96819.0,96818.0,0.0809]
[1735815732306,0.306571,96819.0,96818.0,0.0869]
[1735815732307,0.307571,96819.0,96818.0,0.0869]
[1735815732425,0.001,96819.0,96818.0,0.0869]
[1735815733085,0.101,96819.0,96818.0,0.0869]
[1735815733275,0.001,96819.0,96818.0,0.0869]
[1735815733676,0.101,96819.0,96818.0,0.0869]
[1735815736666,0.1171817,96819.0,96818.0,0.0869]
[1735815743885,0.0171817,96819.0,96818.0,0.19088632]
[1735815744898,0.001,96819.0,96818.0,0.19088632]
[1735815745822,0.0010854,96819.0,96818.0,0.19088632]
[1735815749312,0.0916473,96829.0,96819.0,0.0815]
[1735815749554,0.0916473,96829.0,96821.0,0.1252]
[1735815749757,0.0916473,96829.0,96823.0,0.0799]
[1735815749956,0.0916473,96829.0,96825.0,0.0799]
[1735815750158,0.0916473,96829.0,96825.0,0.18388632]
[1735815752475,0.0916473,96829.0,96825.0,0.18488632]
[1735815752672,0.0916473,96829.0,96825.0,0.18388632]
[1735815753286,0.0916473,96829.0,96825.0,0.18588632]
[1735815753938,0.0916473,96829.0,96825.0,0.18388632]
[1735815755070,0.0916473,96829.0,96825.0,0.18588632]
[1735815757503,0.0916473,96829.0,96826.0,0.1237]
[1735815757700,0.10791232,96829.0,96826.0,0.1237]
[1735815758022,0.206551,96828.0,96826.0,0.1237]
[1735815758308,0.0917327,96829.0,96826.0,0.1237]
[1735815758628,0.0917327,96829.0,96826.0,0.1257]
[1735815759010,0.0917327,96829.0,96826.0,0.1237]
[1735815759341,0.0917327,96829.0,96826.0,0.1267]
[1735815759557,0.0917327,96829.0,96826.0,0.1237]
[1735815759760,0.0917327,96829.0,96826.0,0.1257]
[1735815759963,0.0917327,96829.0,96826.0,0.1307]
[1735815761359,0.10791217,96829.0,96826.0,0.1307]
[1735815761571,0.206551,96828.0,96826.0,0.1307]
[1735815761945,0.0917327,96829.0,96826.0,0.1307]
[1735815762150,8.54e-05,96829.0,96827.0,0.10398632]
[1735815762287,8.54e-05,96829.0,96828.0,0.0758]
[1735815762491,8.54e-05,96829.0,96828.0,0.17978632]
[1735815764670,8.54e-05,96829.0,96828.0,0.18578632]
[1735815764826,0.01626446,96829.0,96828.0,0.18578632]
[1735815770075,0.01626446,96829.0,96828.0,0.18595712]
[1735815770926,0.01626446,96829.0,96828.0,0.23435712]
[1735815773412,8.54e-05,96829.0,96828.0,0.23435712]
[1735815774103,8.54e-05,96829.0,96828.0,0.22835712]
[1735815774391,0.0010854,96829.0,96828.0,0.23835712]
[1735815774724,0.0010854,96829.0,96828.0,0.23735712]
[1735815775166,0.0010854,96829.0,96828.0,0.24135712]
[1735815777294,0.01726369,96829.0,96828.0,0.24135712]
[1735815782765,0.0010854,96829.0,96828.0,0.24135712]
[1735815787103,0.01726335,96829.0,96828.0,0.24135712]
[1735815788348,0.01726335,96829.0,96828.0,0.74135712]
[1735815793078,0.0010854,96829.0,96828.0,0.74135712]
[1735815797915,0.01726403,96829.0,96828.0,0.74135712]
[1735815802777,0.01726403,96829.0,96828.0,0.6373708]
[1735815802979,0.22381303,96829.0,96828.0,0.5131708]
[1735815803806,0.2076344,96829.0,96828.0,0.5131708]
[1735815805232,0.2076344,96829.0,96828.0,0.0131708]
[1735815816536,0.22381408,96829.0,96828.0,0.0131708]
[1735815818790,0.31546138,96829.0,96828.0,0.0131708]
[1735815823149,0.2992817,96829.0,96828.0,0.0131708]
[1735815824215,0.4032817,96829.0,96828.0,0.0131708]
[1735815825379,0.41946192,96829.0,96828.0,0.0131708]
[1735815829100,0.4032817,96829.0,96828.0,0.0131708]
[1735815830721,0.6342817,96829.0,96828.0,0.0131708]
[1735815831350,0.6342817,96829.0,96828.0,0.0091708]
[1735815832064,0.65046326,96829.0,96828.0,0.0091708]
[1735815832588,0.78424958,96829.0,96828.0,0.0001708]
[1735815832935,0.78424958,96829.0,96828.0,0.0031708]
[1735815833140,0.78424958,96829.0,96828.0,0.0001708]
[1735815833382,0.78424958,96829.0,96828.0,0.0021708]
[1735815833829,0.55781596,96829.0,96828.0,0.0001708]
[1735815834199,0.56946326,96829.0,96828.0,0.0001708]
[1735815834368,0.57046326,96829.0,96828.0,0.0001708]
[1735815834784,0.56946326,96829.0,96828.0,0.0001708]
[1735815835228,0.57046326,96829.0,96828.0,0.0001708]
[1735815835433,0.21391426,96829.0,96828.0,0.1222708]
[1735815835638,0.12226696,96829.0,96828.0,0.1222708]
[1735815836143,0.12126696,96829.0,96828.0,0.1222708]
[1735815836645,0.32781596,96829.0,96828.0,0.1222708]
[1735815836883,0.32681596,96829.0,96828.0,0.1242708]
[1735815837295,0.32681596,96829.0,96828.0,0.1222708]
[1735815837500,0.32781596,96829.0,96828.0,0.1302708]
[1735815837681,0.32781596,96829.0,96828.0,0.1332708]
[1735815838644,0.41946326,96829.0,96828.0,0.1332708]
[1735815842151,0.4032817,96829.0,96828.0,0.0569708]
[1735815845171,0.41946165,96829.0,96828.0,0.0569708]
[1735815847814,0.12126535,96829.0,96828.0,0.1351708]
[1735815848850,0.1050854,96829.0,96828.0,0.1351708]
[1735815850600,0.1967327,96829.0,96828.0,0.1351708]
[1735815851985,0.21291253,96829.0,96828.0,0.1351708]
[1735815852346,0.12126523,96829.0,96828.0,0.1351708]
[1735815852786,0.32781423,96829.0,96828.0,0.1351708]
[1735815853380,0.41946153,96829.0,96828.0,0.1351708]
[1735815855426,0.4032817,96829.0,96828.0,0.1351708]
[1735815855800,0.3116344,96829.0,96828.0,0.1351708]
[1735815856590,0.1050854,96829.0,96828.0,0.1351708]
[1735815860808,0.1967327,96829.0,96828.0,0.0111708]
[1735815861804,0.21291274,96829.0,96828.0,0.0111708]
[1735815863275,0.1967327,96829.0,96828.0,0.0111708]
[1735815863477,0.1050854,96829.0,96828.0,0.0897708]
[1735815863672,0.1967327,96829.0,96828.0,0.0897708]
[1735815867163,0.21291259,96829.0,96828.0,0.0895708]
[1735815868178,0.12126529,96829.0,96828.0,0.0895708]
[1735815868731,0.1050854,96829.0,96828.0,0.0895708]
[1735815869083,0.12126523,96829.0,96828.0,0.0895708]
[1735815869878,0.21291253,96829.0,96828.0,0.0895708]
[1735815870079,0.21291253,96829.0,96828.0,0.0109708]
[1735815874227,0.21291253,96829.0,96828.0,0.0111416]
[1735815875152,0.1967327,96829.0,96828.0,0.0111416]
[1735815878628,0.21291296,96829.0,96828.0,0.0111416]
[1735815879033,0.1967327,96829.0,96828.0,0.0111416]
[1735815881807,0.21291299,96829.0,96828.0,0.0111416]
[1735815894187,0.21291299,96829.0,96828.0,0.0886416]
[1735815894388,0.12126569,96829.0,96828.0,0.1355416]
[1735815895564,0.21291299,96829.0,96828.0,0.1355416]
[1735815897492,0.41946199,96829.0,96828.0,0.1355416]
[1735815902138,0.41946199,96829.0,96828.0,0.0111416]
[1735815902342,0.4032817,96829.0,96828.0,0.0111416]
[1735815902544,0.73336802,96829.0,96828.0,0.0111416]
[1735815903061,0.74954913,96829.0,96828.0,0.0081416]
[1735815904352,0.74854913,96829.0,96828.0,0.0001708]
[1735815904550,0.74954913,96829.0,96828.0,0.0081708]
[1735815904981,0.75546181,96829.0,96828.0,0.0001708]
[1735815905212,0.75546181,96829.0,96828.0,0.0011708]
[1735815905745,0.60546181,96829.0,96828.0,0.0011708]
[1735815906262,0.21491381,96829.0,96828.0,0.0011708]
[1735815907476,0.21291381,96829.0,96828.0,0.0011708]
[1735815908882,0.1967327,96829.0,96828.0,0.0011708]
[1735815909907,0.1967327,96829.0,96828.0,0.0785708]
[1735815913427,0.2129128,96829.0,96828.0,0.0785708]
[1735815917610,0.2129128,96829.0,96828.0,0.0011708]
[1735815918550,0.23228484,96829.0,96828.0,0.0011708]
[1735815918754,0.21610474,96829.0,96828.0,0.0011708]
[1735815920449,0.1967327,96829.0,96828.0,0.0011708]
[1735815923358,0.21291296,96829.0,96828.0,0.0011708]
[1735815925848,0.21291296,96829.0,96828.0,0.0832708]
[1735815926530,0.21291296,96829.0,96828.0,0.1290708]
[1735815926531,0.12126566,96829.0,96828.0,0.1290708]
[1735815926727,0.21291296,96829.0,96828.0,0.1290708]
[1735815928955,0.1967327,96829.0,96828.0,0.1290708]
[1735815929155,0.1967327,96829.0,96828.0,0.0011708]
[1735815930559,0.21610313,96829.0,96828.0,0.0011708]
[1735815931793,0.19973153,96829.0,96828.0,0.0011708]
[1735815933435,0.21591207,96829.0,96828.0,0.0011708]
[1735815934841,0.23528829,96829.0,96828.0,0.0011708]
[1735815938848,0.21910775,96829.0,96828.0,0.0011708]
[1735815942186,0.23528828,96829.0,96828.0,0.0011708]
[1735815942624,0.21591206,96829.0,96828.0,0.0011708]
[1735815946000,0.23528877,96829.0,96828.0,0.0011708]
[1735815946619,0.33927509,96829.0,96828.0,0.0011708]
[1735815946825,0.23528877,96829.0,96828.0,0.0011708]
[1735815948926,0.21910824,96829.0,96828.0,0.0011708]
[1735815952224,0.23528893,96829.0,96828.0,0.0011708]
[1735815955581,0.23528893,96829.0,96828.0,0.0818708]
[1735815957199,0.21591222,96829.0,96828.0,0.0818708]
[1735815959004,0.19973153,96829.0,96828.0,0.0818708]
[1735815960688,0.19973153,96829.0,96828.0,0.0011708]
[1735815962027,0.21591222,96829.0,96828.0,0.0011708]
[1735815968761,0.19973153,96829.0,96828.0,0.0011708]
[1735815970183,0.29276035,96829.0,96828.0,0.0011708]
[1735815972120,0.3089411,96829.0,96828.0,0.0011708]
[1735815972912,0.86106011,96829.0,96828.0,0.0011708]
[1735815973106,0.4712033,96826.0,96825.0,0.0001708]
[1735815973307,0.57518962,96826.0,96825.0,0.0001708]
[1735815973509,0.57815248,96826.0,96825.0,0.0001708]
[1735815974430,0.8836858,96826.0,96825.0,0.0001708]
[1735815974728,0.75669948,96826.0,96825.0,0.0001708]
[1735815974942,0.60869948,96826.0,96825.0,0.1277708]
[1735815975712,0.60669948,96826.0,96825.0,0.1277708]
[1735815975967,0.61469948,96826.0,96825.0,0.1287708]
[1735815976178,0.61469948,96826.0,96825.0,0.1277708]
[1735815976348,0.61869948,96826.0,96825.0,0.1277708]
[1735815976970,0.31516616,96826.0,96825.0,0.1277708]
[1735815977531,0.31316616,96826.0,96825.0,0.1277708]
[1735815978643,0.31316616,96826.0,96825.0,0.1287708]
[1735815978849,0.30116616,96826.0,96825.0,0.1287708]
[1735815979259,0.30316616,96826.0,96825.0,0.1287708]
[1735815980037,0.30316616,96826.0,96825.0,0.1284708]
[1735815983127,0.39611558,96826.0,96825.0,0.1284708]
[1735815983517,0.41229628,96826.0,96825.0,0.1284708]
[1735815985825,0.31934686,96826.0,96825.0,0.1284708]
[1735815988295,0.11279086,96826.0,96825.0,0.1284708]
[1735815988503,0.11279086,96826.0,96825.0,0.1286416]
[1735815988897,0.09661016,96826.0,96825.0,0.1286416]
[1735815989099,0.00496286,96826.0,96825.0,0.1286416]
[1735815989305,0.09661016,96826.0,96825.0,0.1286416]
[1735815993448,0.11279044,96826.0,96825.0,0.1286416]
[1735815996821,0.11279044,96826.0,96825.0,0.6450316]
[1735815998866,0.09661016,96826.0,96825.0,0.6450316]
[1735816000052,0.09669556,96826.0,96825.0,0.6450316]
[1735816003280,0.11287581,96826.0,96825.0,0.6450316]
[1735816004303,0.02122851,96826.0,96825.0,0.6450316]
[1735816005089,0.11287581,96826.0,96825.0,0.6450316]
[1735816005290,0.02122851,96826.0,96825.0,0.6450316]
[1735816005848,0.11287581,96826.0,96825.0,0.6450316]
[1735816006466,0.02122851,96826.0,96825.0,0.6450316]
[1735816006637,0.11287581,96826.0,96825.0,0.6450316]
[1735816006845,0.02122851,96826.0,96825.0,0.6450316]
[1735816008862,0.00504826,96826.0,96825.0,0.6450316]
[1735816009159,0.09669556,96826.0,96825.0,0.6450316]
[1735816012361,0.00504826,96826.0,96825.0,0.6450316]
[1735816012930,0.0020854,96826.0,96825.0,0.6450316]
[1735816013305,0.01826529,96826.0,96825.0,0.6450316]
[1735816013589,0.02076425,96826.0,96825.0,0.6450316]
[1735816014033,0.02076425,96826.0,96825.0,0.74901792]
[1735816015400,0.01826529,96826.0,96825.0,0.74901792]
[1735816017756,0.03764043,96826.0,96825.0,0.74901792]
[1735816017974,0.03564043,96826.0,96825.0,0.74801792]
[1735816018173,0.09294942,96846.0,96838.0,0.0083527]
[1735816018381,0.09294942,96846.0,96845.0,0.43450132]
[1735816019148,0.06328523,96846.0,96845.0,0.43450132]
[1735816019350,4.925e-05,96846.0,96845.0,0.95419132]
[1735816020100,4.925e-05,96846.0,96845.0,0.95409132]
[1735816020825,4.925e-05,96846.0,96845.0,1.29668781]
[1735816021338,0.00104925,96846.0,96845.0,1.79668781]
[1735816021548,0.00104925,96846.0,96845.0,1.80268781]
[1735816021811,0.00204925,96846.0,96845.0,1.81168781]
[1735816021980,0.00204925,96846.0,96845.0,1.80568781]
[1735816022181,0.00204925,96846.0,96845.0,1.82612515]
[1735816022738,0.00304925,96846.0,96845.0,1.84247785]
[1735816023200,0.00304925,96846.0,96845.0,1.85295647]
[1735816023366,0.00313465,96846.0,96845.0,1.85295647]
[1735816023567,0.00313465,96846.0,96845.0,1.6030897]
[1735816024545,0.00313465,96846.0,96845.0,1.51035998]
[1735816024939,0.00138785,96846.0,96845.0,1.51035998]
[1735816029989,0.00138785,96846.0,96845.0,1.51449498]
[1735816034842,8.54e-05,96851.0,96848.0,0.287709]
[1735816035040,8.54e-05,96851.0,96848.0,0.39169532]
[1735816035238,8.54e-05,96851.0,96848.0,1.06485677]
[1735816036063,0.00122623,96849.0,96848.0,1.07285677]
[1735816037239,0.00222623,96849.0,96848.0,1.08185677]
[1735816037885,0.00222623,96849.0,96848.0,1.23185677]
[1735816038203,0.00222623,96849.0,96848.0,1.27905677]
[1735816038406,0.00222623,96849.0,96848.0,1.28740947]
[1735816039315,1e-08,96851.0,96850.0,0.1357527]
[1735816039554,1e-08,96851.0,96850.0,0.23973902]
[1735816039722,1e-08,96851.0,96850.0,0.75599902]
[1735816040931,0.00196001,96851.0,96850.0,0.92199902]
[1735816041228,0.00196001,96851.0,96850.0,1.02199902]
[1735816042232,0.00196001,96851.0,96850.0,1.19951482]
[1735816042437,8.54e-05,96872.0,96871.0,0.20646]
[1735816042747,0.00017693,96872.0,96871.0,0.31044632]
[1735816042952,0.00017693,96872.0,96871.0,0.82659632]
[1735816043867,0.00017693,96872.0,96871.0,0.83059632]
[1735816044069,0.00017693,96872.0,96871.0,0.91219632]
[1735816044602,0.00117693,96872.0,96871.0,0.92019632]
[1735816044744,0.00117693,96872.0,96871.0,1.40819632]
[1735816045089,0.00217693,96872.0,96871.0,1.44101226]
[1735816045507,0.00217693,96872.0,96871.0,1.43701226]
[1735816045925,0.00217693,96872.0,96871.0,1.63401226]
[1735816046058,0.00217693,96872.0,96871.0,1.80199589]
[1735816046268,8.54e-05,96899.0,96887.0,0.335226]
[1735816046476,8.54e-05,96899.0,96887.0,0.95528232]
[1735816047132,0.01616927,96895.0,96887.0,0.95528232]
[1735816047732,0.01616927,96895.0,96887.0,0.95928232]
[1735816048358,0.01616927,96895.0,96887.0,0.96128232]
[1735816048578,8.54e-05,96899.0,96887.0,1.45528232]
[1735816048809,8.54e-05,96899.0,96887.0,1.87600824]
[1735816049870,8.54e-05,96899.0,96887.0,1.88300824]
[1735816050273,8.54e-05,96899.0,96898.0,0.206402]
[1735816050479,0.00019219,96899.0,96898.0,0.82639832]
[1735816051599,0.00019219,96899.0,96898.0,0.83039832]
[1735816052119,0.00019219,96899.0,96898.0,0.83439832]
[1735816052351,0.00019219,96899.0,96898.0,1.33439832]
[1735816053088,0.00019219,96899.0,96898.0,1.34339832]
[1735816053291,0.00019219,96899.0,96898.0,1.33039832]
[1735816053614,0.00019219,96899.0,96898.0,1.33539832]
[1735816053961,0.00019219,96899.0,96898.0,1.33239832]
[1735816054300,0.00019219,96899.0,96898.0,1.33539832]
[1735816054709,0.00019219,96899.0,96898.0,1.33939832]
[1735816054909,0.00019219,96899.0,96898.0,1.34839832]
[1735816055117,0.00019219,96899.0,96898.0,1.34439832]
[1735816055435,0.00019219,96899.0,96898.0,1.35139832]
[1735816055641,0.01635874,96899.0,96898.0,1.35139832]
[1735816056643,0.01635874,96899.0,96898.0,1.41999832]
[1735816057028,0.01635874,96899.0,96898.0,1.44335732]
[1735816057222,0.01635874,96899.0,96898.0,1.42535732]
[1735816057431,0.01635874,96899.0,96898.0,1.41835732]
[1735816057651,0.01635874,96899.0,96898.0,1.42735732]
[1735816057997,0.01635874,96899.0,96898.0,1.44554844]
[1735816058211,0.01635874,96899.0,96898.0,1.45454844]
[1735816059309,0.00019219,96899.0,96898.0,1.45454844]
[1735816060308,0.00019219,96899.0,96898.0,1.50394844]
[1735816062475,0.00019219,96899.0,96898.0,1.51180114]
[1735816063212,8.54e-05,96923.0,96900.0,0.4276743]
[1735816063406,8.54e-05,96923.0,96909.0,0.206379]
[1735816063622,8.54e-05,96923.0,96909.0,0.82631532]
[1735816063820,0.01616553,96918.0,96909.0,0.82631532]
[1735816065202,0.01616553,96918.0,96909.0,0.83531532]
[1735816065405,0.01616553,96918.0,96909.0,0.84131532]
[1735816065602,0.01616553,96918.0,96909.0,1.34131532]
[1735816067224,0.01616553,96918.0,96909.0,1.36173216]
[1735816069288,0.01616553,96918.0,96909.0,1.36123216]